bitfinex/quotes_BTCUSD_20250604
["timestamp","ask_amount","ask_price","bid_price","bid_amount"]
[1749076636883,9.191e-05,104730.0,104720.0,0.7957943]
[1749076637279,9.191e-05,104730.0,104720.0,0.8530943]
[1749076637553,9.191e-05,104730.0,104720.0,0.8248943]
[1749076637768,9.191e-05,104730.0,104720.0,0.8530943]
[1749076637988,9.191e-05,104730.0,104720.0,0.5597943]
[1749076638636,9.191e-05,104730.0,104720.0,0.3538343]
[1749076639759,9.191e-05,104730.0,104720.0,0.2965343]
[1749076640522,9.191e-05,104730.0,104720.0,0.3529343]
[1749076640771,9.191e-05,104730.0,104720.0,0.3123343]
[1749076641996,9.191e-05,104730.0,104720.0,0.1562543]
[1749076642218,9.191e-05,104730.0,104720.0,0.0998543]
[1749076642424,9.191e-05,104730.0,104720.0,0.2559343]
[1749076642900,0.05679191,104730.0,104720.0,0.0998543]
[1749076643115,0.05679191,104730.0,104720.0,0.2559343]
[1749076643565,9.191e-05,104730.0,104720.0,0.2559343]
[1749076644048,9.191e-05,104730.0,104720.0,0.0998543]
[1749076644289,9.191e-05,104730.0,104720.0,0.5024943]
[1749076645622,0.02929191,104730.0,104720.0,0.5024943]
[1749076647719,9.191e-05,104730.0,104720.0,0.5024943]
[1749076648174,9.191e-05,104730.0,104720.0,0.3058143]
[1749076648388,9.191e-05,104730.0,104720.0,0.5024943]
[1749076650131,0.02949191,104730.0,104720.0,0.5024943]
[1749076650339,9.191e-05,104730.0,104720.0,0.5024943]
[1749076651511,0.03059191,104730.0,104720.0,0.5024943]
[1749076653731,9.191e-05,104730.0,104720.0,0.5024943]
[1749076657774,9.191e-05,104730.0,104720.0,0.5331943]
[1749076660495,9.191e-05,104730.0,104720.0,0.5621943]
[1749076660955,9.191e-05,104730.0,104720.0,0.3655143]
[1749076661194,0.05819191,104730.0,104720.0,0.20996]
[1749076661445,0.0581,104720.0,104700.0,0.02]
[1749076661687,0.0581,104720.0,104710.0,0.2518943]
[1749076661908,0.0581,104720.0,104710.0,0.0958543]
[1749076662160,0.0581,104720.0,104710.0,0.2518943]
[1749076663263,0.0581,104720.0,104710.0,0.0958543]
[1749076663503,0.0581,104720.0,104710.0,0.2538943]
[1749076664154,0.0581,104720.0,104710.0,0.5004543]
[1749076664819,0.0581,104720.0,104710.0,0.5014543]
[1749076667448,0.21004417,104740.0,104710.0,0.5014543]
[1749076667663,0.02864289,104730.0,104710.0,0.5014543]
[1749076667879,0.03819143,104730.0,104710.0,0.5014543]
[1749076668096,0.01909753,104720.0,104710.0,0.24956]
[1749076668362,0.01909753,104720.0,104710.0,0.24856]
[1749076668575,0.01909753,104720.0,104710.0,0.4026]
[1749076668576,0.01909744,104720.0,104710.0,0.4026]
[1749076669052,0.01909744,104720.0,104710.0,0.4036]
[1749076669272,0.01909744,104720.0,104710.0,0.4026]
[1749076669487,0.01909744,104720.0,104710.0,0.4036]
[1749076669709,0.01909744,104720.0,104710.0,0.4056]
[1749076670146,0.01909744,104720.0,104710.0,0.4036]
[1749076670370,0.10702139,104720.0,104710.0,0.4056]
[1749076670586,0.06924863,104720.0,104710.0,0.4056]
[1749076671029,0.07879744,104720.0,104710.0,0.4056]
[1749076672882,0.06924863,104720.0,104710.0,0.4056]
[1749076673091,0.07879744,104720.0,104710.0,0.4056]
[1749076674594,0.06924863,104720.0,104710.0,0.4056]
[1749076674807,0.10825312,104720.0,104710.0,0.4056]
[1749076675707,0.00954845,104720.0,104710.0,0.4056]
[1749076676155,0.01909699,104720.0,104710.0,0.4056]
[1749076678647,0.26816389,104730.0,104710.0,0.4056]
[1749076679134,0.23856389,104730.0,104710.0,0.4628]
[1749076679368,0.0285,104730.0,104710.0,0.4628]
[1749076679584,0.04881157,104730.0,104720.0,0.0284]
[1749076679804,0.27654288,104740.0,104710.0,0.4628]
[1749076680025,0.37239718,104740.0,104710.0,0.4628]
[1749076680505,0.37239718,104740.0,104710.0,0.4598]
[1749076680736,0.27653982,104740.0,104720.0,0.0572]
[1749076680952,0.27654036,104740.0,104730.0,0.15604]
[1749076681394,0.08558978,104740.0,104720.0,0.0572]
[1749076681666,0.09513723,104740.0,104720.0,0.0572]
[1749076681881,0.28608677,104740.0,104720.0,0.0572]
[1749076682339,0.09662117,104740.0,104720.0,0.0572]
[1749076682557,0.05026789,104740.0,104730.0,0.1966]
[1749076682801,0.00104809,104740.0,104730.0,0.2555]
[1749076683461,0.00104809,104740.0,104730.0,0.3513543]
[1749076683681,4.809e-05,104740.0,104730.0,0.3513543]
[1749076684605,0.00104809,104740.0,104730.0,0.3513543]
[1749076685381,0.00304809,104740.0,104730.0,0.3513543]
[1749076685615,0.01259481,104740.0,104730.0,0.3513543]
[1749076686057,0.00954754,104730.0,104710.0,0.23386]
[1749076686275,0.27873862,104740.0,104730.0,0.04056]
[1749076686276,0.0877887,104740.0,104730.0,0.04056]
[1749076686488,0.05024162,104740.0,104730.0,0.04056]
[1749076686935,0.04069472,104740.0,104730.0,0.04056]
[1749076687149,0.03869472,104740.0,104730.0,0.04056]
[1749076687803,0.05778843,104740.0,104730.0,0.04056]
[1749076688311,0.04824144,104740.0,104730.0,0.04056]
[1749076688533,0.05778843,104740.0,104730.0,0.04056]
[1749076688966,0.00104809,104740.0,104730.0,0.07016]
[1749076689195,0.00104809,104740.0,104730.0,0.35244114]
[1749076689436,0.00304809,104740.0,104730.0,0.3500543]
[1749076690374,0.00104809,104740.0,104730.0,0.3500543]
[1749076690822,4.809e-05,104740.0,104730.0,0.3500543]
[1749076691923,4.809e-05,104740.0,104730.0,0.3094943]
[1749076693531,4.809e-05,104740.0,104730.0,0.1534543]
[1749076693721,4.809e-05,104740.0,104730.0,0.3094543]
[1749076694264,4.809e-05,104740.0,104730.0,0.5559743]
[1749076695002,0.01914162,104740.0,104730.0,0.5279743]
[1749076695216,0.00959472,104740.0,104730.0,0.5281743]
[1749076695437,0.00959472,104740.0,104730.0,0.5582743]
[1749076695667,0.01914153,104740.0,104730.0,0.4022743]
[1749076695886,0.01914153,104740.0,104730.0,0.5582743]
[1749076695887,0.01914144,104740.0,104730.0,0.5582743]
[1749076696123,0.02868906,104740.0,104730.0,0.24652]
[1749076696363,0.02868906,104740.0,104730.0,0.40252]
[1749076696838,0.02868906,104740.0,104730.0,0.20596]
[1749076697318,0.02868906,104740.0,104730.0,0.40252]
[1749076698021,0.0191418,104740.0,104730.0,0.40252]
[1749076698242,0.02868897,104740.0,104730.0,0.40252]
[1749076698934,0.01914171,104740.0,104730.0,0.40252]
[1749076699155,0.01914171,104740.0,104730.0,0.43002]
[1749076699376,0.01914171,104740.0,104730.0,0.45832]
[1749076701599,0.01914171,104740.0,104730.0,0.27482]
[1749076701822,0.00959481,104740.0,104730.0,0.40252]
[1749076702039,0.0191418,104740.0,104730.0,0.40252]
[1749076702258,0.01914171,104740.0,104730.0,0.40252]
[1749076702795,0.02868879,104740.0,104730.0,0.40252]
[1749076703312,0.00959481,104740.0,104730.0,0.40252]
[1749076703994,0.01914171,104740.0,104730.0,0.40252]
[1749076704430,0.01914162,104740.0,104730.0,0.40252]
[1749076705571,0.00959481,104740.0,104730.0,0.40252]
[1749076705801,0.00959481,104740.0,104730.0,0.46062]
[1749076706031,4.809e-05,104740.0,104730.0,0.46062]
[1749076706254,0.00959481,104740.0,104730.0,0.26406]
[1749076706474,0.01914171,104740.0,104730.0,0.46062]
[1749076707162,0.00959481,104740.0,104730.0,0.46062]
[1749076709091,0.00959472,104740.0,104730.0,0.46062]
[1749076709333,0.01914153,104740.0,104730.0,0.26406]
[1749076709567,0.01914153,104740.0,104730.0,0.46062]
[1749076709802,0.00959472,104740.0,104730.0,0.46062]
[1749076710002,0.01914144,104740.0,104730.0,0.46062]
[1749076710254,4.809e-05,104740.0,104730.0,0.46062]
[1749076710473,4.809e-05,104740.0,104730.0,0.5564743]
[1749076711143,4.809e-05,104740.0,104730.0,0.3505143]
[1749076712291,4.809e-05,104740.0,104730.0,0.3099543]
[1749076712506,4.809e-05,104740.0,104730.0,0.34772667]
[1749076712724,4.809e-05,104740.0,104730.0,0.3099543]
[1749076713409,4.809e-05,104740.0,104730.0,0.34859807]
[1749076713885,4.809e-05,104740.0,104730.0,0.3099543]
[1749076714107,4.809e-05,104740.0,104730.0,0.5564343]
[1749076719665,4.809e-05,104740.0,104730.0,0.3099543]
[1749076720361,4.809e-05,104740.0,104730.0,0.32449515]
[1749076722030,4.809e-05,104740.0,104730.0,0.32549515]
[1749076722460,4.809e-05,104740.0,104730.0,0.32749515]
[1749076723837,4.809e-05,104740.0,104730.0,0.62079515]
[1749076724044,4.809e-05,104740.0,104730.0,0.86727515]
[1749076725968,4.809e-05,104740.0,104730.0,0.99354171]
[1749076726179,4.809e-05,104740.0,104730.0,1.36723412]
[1749076726654,4.809e-05,104740.0,104730.0,1.32671412]
[1749076727287,4.809e-05,104740.0,104730.0,1.32667412]
[1749076727500,4.809e-05,104740.0,104730.0,1.29444756]
[1749076730565,4.809e-05,104740.0,104730.0,1.47707412]
[1749076730779,4.809e-05,104740.0,104730.0,1.49338171]
[1749076730991,4.809e-05,104740.0,104730.0,1.52358355]
[1749076731415,4.809e-05,104740.0,104730.0,1.52258355]
[1749076731627,4.809e-05,104740.0,104730.0,1.52658355]
[1749076731828,0.00104809,104740.0,104730.0,1.53258355]
[1749076733171,0.004,104780.0,104760.0,0.01454085]
[1749076733386,0.004,104780.0,104770.0,0.32530068]
[1749076733387,0.00448105,104780.0,104770.0,0.32530068]
[1749076733615,0.00448105,104780.0,104770.0,0.32291515]
[1749076734056,0.00448105,104780.0,104770.0,0.52883515]
[1749076734274,0.00448105,104780.0,104770.0,0.56935515]
[1749076734694,0.00548105,104780.0,104770.0,0.56935515]
[1749076735790,0.00548105,104780.0,104770.0,0.60776773]
[1749076736002,0.00548105,104780.0,104770.0,0.63598021]
[1749076736227,0.00648105,104780.0,104770.0,0.63598021]
[1749076737275,0.00648105,104780.0,104770.0,0.43006021]
[1749076737929,0.00548105,104780.0,104770.0,0.43006021]
[1749076738117,0.00448105,104780.0,104770.0,0.43006021]
[1749076738324,0.00448105,104780.0,104770.0,0.43106021]
[1749076738547,0.00448105,104780.0,104770.0,0.43206021]
[1749076739414,0.00448105,104780.0,104770.0,0.39154021]
[1749076741593,0.00448105,104780.0,104770.0,0.39150021]
[1749076742882,0.00448105,104780.0,104770.0,0.17902021]
[1749076743127,0.06228105,104780.0,104770.0,0.0978543]
[1749076743341,0.00448105,104780.0,104770.0,0.2537343]
[1749076744262,0.00448105,104780.0,104770.0,0.5000943]
[1749076744719,0.03128105,104780.0,104770.0,0.5000943]
[1749076745164,0.00448105,104780.0,104770.0,0.5000943]
[1749076745402,0.05838105,104780.0,104770.0,0.3037343]
[1749076745657,0.05838105,104780.0,104770.0,0.5000943]
[1749076746057,0.08701109,104780.0,104750.0,0.10906749]
[1749076746272,0.05006737,104780.0,104760.0,0.0958543]
[1749076746493,0.05006737,104780.0,104760.0,0.2516943]
[1749076746708,0.0274,104770.0,104760.0,0.2516943]
[1749076747145,0.05838105,104780.0,104760.0,0.2516943]
[1749076747814,0.05838105,104780.0,104760.0,0.2536943]
[1749076748317,0.06792403,104780.0,104760.0,0.2536943]
[1749076748526,0.06792403,104780.0,104760.0,0.2556943]
[1749076748964,0.07289912,104780.0,104760.0,0.2556943]
[1749076749617,0.06335614,104780.0,104760.0,0.2556943]
[1749076750682,0.07289912,104780.0,104760.0,0.2556943]
[1749076751748,0.06335614,104780.0,104760.0,0.2556943]
[1749076752646,0.06335614,104780.0,104770.0,0.15584]
[1749076752647,0.07289921,104780.0,104770.0,0.15584]
[1749076753305,0.06335614,104780.0,104770.0,0.15584]
[1749076753568,0.07289912,104780.0,104770.0,0.15584]
[1749076753785,0.08244237,104780.0,104770.0,0.15584]
[1749076754006,0.08244237,104780.0,104750.0,0.029]
[1749076754007,0.08243213,104770.0,104750.0,0.029]
[1749076754226,0.06334389,104770.0,104760.0,0.4022]
[1749076754438,0.01899921,104780.0,104760.0,0.4022]
[1749076754651,0.03735614,104780.0,104760.0,0.4022]
[1749076755346,0.03735614,104780.0,104770.0,0.001]
[1749076755564,0.03735614,104780.0,104760.0,0.4022]
[1749076755788,0.04689912,104780.0,104760.0,0.24636]
[1749076756050,0.04689912,104780.0,104770.0,0.15584]
[1749076756260,0.05644228,104780.0,104770.0,0.15584]
[1749076756474,0.05644219,104780.0,104770.0,0.15584]
[1749076757122,0.08334219,104780.0,104770.0,0.15584]
[1749076757788,0.08534219,104780.0,104770.0,0.15584]
[1749076758224,0.06625614,104780.0,104770.0,0.15584]
[1749076758870,0.06725614,104780.0,104770.0,0.15584]
[1749076759978,0.07679921,104780.0,104770.0,0.15584]
[1749076760413,0.06725614,104780.0,104770.0,0.15584]
[1749076760624,0.07679912,104780.0,104770.0,0.15584]
[1749076761056,0.06725614,104780.0,104770.0,0.15584]
[1749076762145,0.07679921,104780.0,104770.0,0.15584]
[1749076762357,0.06725614,104780.0,104770.0,0.15584]
[1749076762838,0.07679921,104780.0,104770.0,0.15584]
[1749076763411,0.40725614,104780.0,104770.0,0.15584]
[1749076763667,0.41679912,104780.0,104770.0,0.15584]
[1749076764378,0.06725614,104780.0,104770.0,0.15584]
[1749076765290,0.07679912,104780.0,104770.0,0.15584]
[1749076765541,0.09588535,104780.0,104770.0,0.15584]
[1749076766556,0.09588535,104780.0,104760.0,0.20588]
[1749076766805,0.0575,104770.0,104760.0,0.20588]
[1749076767035,0.0575,104770.0,104760.0,0.4022]
[1749076767255,0.0291,104770.0,104760.0,0.4022]
[1749076767970,0.0291,104770.0,104760.0,0.4032]
[1749076768180,0.0291,104770.0,104760.0,0.4022]
[1749076768867,0.0291,104770.0,104760.0,0.4032]
[1749076769081,0.0291,104770.0,104760.0,0.4022]
[1749076769503,0.0291,104770.0,104760.0,0.20688]
[1749076769713,0.0291,104770.0,104760.0,0.19732]
[1749076769926,0.0291,104770.0,104760.0,0.19832]
[1749076771442,0.06730075,104770.0,104760.0,0.19832]
[1749076771887,0.0291,104770.0,104760.0,0.19832]
[1749076772687,0.0291,104770.0,104760.0,0.15784]
[1749076773122,0.1109726,104780.0,104760.0,0.15784]
[1749076773335,0.10142907,104780.0,104760.0,0.15784]
[1749076773812,0.43188563,104780.0,104760.0,0.15784]
[1749076774021,0.43188563,104780.0,104760.0,0.15684]
[1749076774229,0.44142907,104780.0,104770.0,0.24636]
[1749076774668,0.43188563,104780.0,104770.0,0.24636]
[1749076774872,0.42234228,104780.0,104770.0,0.24636]
[1749076775076,0.43188553,104780.0,104770.0,0.24636]
[1749076775305,0.47098084,104780.0,104770.0,0.24636]
[1749076775728,0.49106763,104780.0,104770.0,0.24636]
[1749076775938,0.47198121,104780.0,104770.0,0.24636]
[1749076776361,0.47298121,104780.0,104770.0,0.24636]
[1749076776576,0.47298121,104780.0,104770.0,0.4022]
[1749076777427,0.47298121,104780.0,104770.0,0.20588]
[1749076777640,0.47298121,104780.0,104770.0,0.4022]
[1749076778390,0.48252474,104780.0,104770.0,0.4022]
[1749076779429,0.65431472,104780.0,104770.0,0.20588]
[1749076779670,0.47298185,104780.0,104750.0,0.1537543]
[1749076780098,0.48252556,104780.0,104750.0,0.1537543]
[1749076780498,0.48152556,104780.0,104750.0,0.1537543]
[1749076780711,0.48152556,104780.0,104750.0,0.1557543]
[1749076780926,0.48152556,104780.0,104760.0,0.15584]
[1749076781127,0.48052556,104780.0,104760.0,0.15584]
[1749076781962,0.48052556,104780.0,104760.0,0.15684]
[1749076782459,0.48052556,104780.0,104760.0,0.15784]
[1749076783476,0.48052556,104780.0,104760.0,0.18544]
[1749076783749,0.47098185,104780.0,104760.0,0.18544]
[1749076784006,0.48052565,104780.0,104760.0,0.18544]
[1749076784262,0.66185957,104780.0,104770.0,0.4022]
[1749076784488,0.00954398,104770.0,104760.0,0.002]
[1749076784714,0.04768806,104770.0,104760.0,0.24836]
[1749076784939,0.05723231,104770.0,104760.0,0.24836]
[1749076785158,0.00954389,104770.0,104760.0,0.24836]
[1749076785417,0.00954389,104770.0,104760.0,0.24736]
[1749076785888,0.00954389,104770.0,104760.0,0.4032]
[1749076786566,0.65371604,104780.0,104760.0,0.4032]
[1749076786753,0.01908806,104770.0,104760.0,0.4042]
[1749076787212,0.02863232,104770.0,104760.0,0.4042]
[1749076787394,0.02863232,104770.0,104760.0,0.4032]
[1749076787628,0.01908806,104770.0,104760.0,0.4032]
[1749076788651,0.01908806,104770.0,104760.0,0.4042]
[1749076789083,0.01908806,104770.0,104760.0,0.20688]
[1749076789294,0.00954389,104770.0,104760.0,0.40416]
[1749076789502,0.01908796,104770.0,104760.0,0.40416]
[1749076791213,0.02863213,104770.0,104760.0,0.40416]
[1749076792064,0.02863213,104770.0,104760.0,0.20788]
[1749076792273,0.02863213,104770.0,104760.0,0.40416]
[1749076792509,0.03817639,104770.0,104760.0,0.40416]
[1749076792956,0.02863213,104770.0,104760.0,0.40416]
[1749076794103,0.00954389,104770.0,104760.0,0.23578]
[1749076794306,0.01908806,104770.0,104760.0,0.45896]
[1749076794505,0.00954389,104770.0,104760.0,0.45896]
[1749076796006,0.45786369,104780.0,104760.0,0.45896]
[1749076796217,0.64874012,104780.0,104760.0,0.45896]
[1749076796394,0.45786314,104780.0,104770.0,0.19624]
[1749076796624,0.40266259,104780.0,104770.0,0.19624]
[1749076796837,0.41220603,104780.0,104770.0,0.22414]
[1749076797048,0.40266259,104780.0,104770.0,0.22414]
[1749076797472,0.40266259,104780.0,104770.0,0.25224]
[1749076797691,0.41320594,104780.0,104770.0,0.056]
[1749076798075,0.40366259,104780.0,104770.0,0.25224]
[1749076798808,0.39411934,104780.0,104770.0,0.25224]
[1749076799020,0.4046625,104780.0,104770.0,0.25224]
[1749076800101,0.41420585,104780.0,104770.0,0.25224]
[1749076800321,0.41420585,104780.0,104770.0,0.22414]
[1749076800763,0.41420585,104780.0,104770.0,0.19624]
[1749076800764,0.42374938,104780.0,104770.0,0.19624]
[1749076800986,0.42374929,104780.0,104770.0,0.19624]
[1749076802069,0.39511934,104780.0,104770.0,0.19624]
[1749076802297,0.38557636,104780.0,104770.0,0.25024]
[1749076805338,0.39511934,104780.0,104770.0,0.25024]
[1749076805516,0.38557636,104780.0,104770.0,0.25024]
[1749076805724,0.39511943,104780.0,104770.0,0.25024]
[1749076806766,0.40466259,104780.0,104770.0,0.25024]
[1749076809212,0.40963785,104780.0,104770.0,0.25024]
[1749076809425,0.4191811,104780.0,104770.0,0.25024]
[1749076811505,0.40963785,104780.0,104770.0,0.25024]
[1749076812434,0.39055162,104780.0,104770.0,0.25024]
[1749076812633,0.40009478,104780.0,104770.0,0.25024]
[1749076812860,0.39511952,104780.0,104770.0,0.25024]
[1749076813072,0.40466287,104780.0,104770.0,0.45612]
[1749076813495,0.40466277,104780.0,104770.0,0.45612]
[1749076814496,0.41420621,104780.0,104770.0,0.40208]
[1749076815347,0.40466277,104780.0,104770.0,0.40208]
[1749076815522,0.40466277,104780.0,104770.0,0.42988]
[1749076816152,0.42374992,104780.0,104770.0,0.42988]
[1749076818131,0.42872516,104780.0,104770.0,0.42988]
[1749076818633,0.42872498,104780.0,104770.0,0.42988]
[1749076818840,0.43826869,104780.0,104770.0,0.42988]
[1749076820131,0.42872498,104780.0,104770.0,0.42988]
[1749076820334,0.43826869,104780.0,104770.0,0.42988]
[1749076821680,0.43826869,104780.0,104770.0,0.45668]
[1749076822121,0.40009476,104780.0,104770.0,0.45668]
[1749076822555,0.3905516,104780.0,104770.0,0.45668]
[1749076822764,0.40009467,104780.0,104770.0,0.45668]
[1749076822969,0.40963783,104780.0,104770.0,0.45668]
[1749076823621,0.40009467,104780.0,104770.0,0.45668]
[1749076823840,0.3905516,104780.0,104770.0,0.45668]
[1749076824076,0.40009467,104780.0,104770.0,0.45668]
[1749076824788,0.3905516,104780.0,104770.0,0.45668]
[1749076825685,0.40009467,104780.0,104770.0,0.45668]
[1749076825925,0.3905516,104780.0,104770.0,0.45668]
[1749076826141,0.40009467,104780.0,104770.0,0.45668]
[1749076826556,0.40009458,104780.0,104770.0,0.45668]
[1749076826763,0.3905516,104780.0,104770.0,0.45668]
[1749076827619,0.01145629,104780.0,104770.0,0.5525343]
[1749076827841,0.00648105,104780.0,104770.0,0.5525343]
[1749076828055,0.00648105,104780.0,104770.0,0.3466543]
[1749076829095,0.00548105,104780.0,104770.0,0.3062143]
[1749076829286,0.00448105,104780.0,104770.0,0.3062143]
[1749076829430,0.00448105,104780.0,104770.0,0.3082143]
[1749076830751,0.00448105,104780.0,104770.0,0.34069185]
[1749076831925,0.00448105,104780.0,104770.0,0.3082143]
[1749076833345,0.00448105,104780.0,104770.0,0.1524543]
[1749076833766,0.00448105,104780.0,104770.0,0.0566]
[1749076834012,0.02356747,104780.0,104770.0,0.404]
[1749076834242,0.033111,104780.0,104770.0,0.0404]
[1749076834452,0.36356747,104780.0,104770.0,0.0404]
[1749076835541,0.36356747,104780.0,104770.0,0.19612]
[1749076835754,0.36556747,104780.0,104770.0,0.19612]
[1749076835972,0.36656747,104780.0,104770.0,0.19612]
[1749076838891,0.37611091,104780.0,104760.0,0.0555]
[1749076839070,0.37611091,104780.0,104770.0,0.19612]
[1749076839491,0.36656747,104780.0,104770.0,0.19612]
[1749076839734,0.36356747,104780.0,104770.0,0.19612]
[1749076841031,0.34448105,104780.0,104770.0,0.25082]
[1749076841463,0.35402403,104780.0,104770.0,0.25082]
[1749076841684,0.35502403,104780.0,104770.0,0.25082]
[1749076842376,0.35702403,104780.0,104770.0,0.25082]
[1749076843570,0.34748105,104780.0,104770.0,0.25082]
[1749076844018,0.35702412,104780.0,104770.0,0.25082]
[1749076844257,0.35702412,104780.0,104770.0,0.4567]
[1749076844493,0.34748105,104780.0,104770.0,0.4567]
[1749076844730,0.35702403,104780.0,104770.0,0.4567]
[1749076845216,0.36656719,104780.0,104770.0,0.4567]
[1749076845849,0.36656719,104780.0,104770.0,0.45666]
[1749076846528,0.35702403,104780.0,104770.0,0.45666]
[1749076846938,0.36656719,104780.0,104770.0,0.45666]
[1749076849067,0.35702403,104780.0,104770.0,0.45666]
[1749076849484,0.34748105,104780.0,104770.0,0.45666]
[1749076850571,0.35702403,104780.0,104770.0,0.45666]
[1749076854494,0.36656719,104780.0,104770.0,0.45666]
[1749076854702,0.35702403,104780.0,104770.0,0.45666]
[1749076855523,0.34748105,104780.0,104770.0,0.45666]
[1749076855731,0.35702403,104780.0,104770.0,0.45666]
[1749076856143,0.35702403,104780.0,104770.0,0.42986]
[1749076856761,0.35702403,104780.0,104770.0,0.23378]
[1749076856996,0.35702403,104780.0,104770.0,0.42986]
[1749076858040,0.34748105,104780.0,104770.0,0.45706]
[1749076858206,0.35702403,104780.0,104770.0,0.45706]
[1749076858649,0.34748105,104780.0,104770.0,0.45706]
[1749076858865,0.35702403,104780.0,104770.0,0.45706]
[1749076859666,0.36656719,104780.0,104770.0,0.45706]
[1749076859891,0.35702403,104780.0,104770.0,0.45706]
[1749076860146,0.3665671,104780.0,104770.0,0.45706]
[1749076860801,0.3665671,104780.0,104770.0,0.30138]
[1749076861013,0.3856537,104780.0,104770.0,0.24624]
[1749076861220,0.37611026,104780.0,104760.0,0.1495543]
[1749076861425,0.38498251,104780.0,104760.0,0.1495543]
[1749076861649,0.43888343,104780.0,104760.0,0.1495543]
[1749076861862,0.43888334,104780.0,104760.0,0.1495543]
[1749076862035,0.41118334,104780.0,104760.0,0.1495543]
[1749076862268,0.40918334,104780.0,104760.0,0.1495543]
[1749076862474,0.40918334,104780.0,104770.0,0.15564]
[1749076862475,0.39863981,104780.0,104770.0,0.15564]
[1749076862682,0.39863981,104780.0,104760.0,0.1495543]
[1749076863265,0.39863981,104780.0,104760.0,0.1505543]
[1749076863859,0.40818325,104780.0,104770.0,0.15564]
[1749076864055,0.40818325,104780.0,104770.0,0.24624]
[1749076864268,0.01908824,104770.0,104760.0,0.0547]
[1749076864431,0.01908815,104770.0,104760.0,0.0547]
[1749076865033,0.01908815,104770.0,104760.0,0.001]
[1749076865261,0.01908815,104770.0,104750.0,0.0518]
[1749076865440,0.01908815,104770.0,104750.0,0.1476543]
[1749076865694,0.00954398,104770.0,104760.0,0.15564]
[1749076865910,0.58197386,104780.0,104760.0,0.20744]
[1749076866118,0.36489665,104780.0,104760.0,0.20744]
[1749076866361,0.37444027,104780.0,104760.0,0.20844]
[1749076866576,0.37244027,104780.0,104760.0,0.20844]
[1749076866791,0.36289665,104780.0,104760.0,0.20844]
[1749076867211,0.37244036,104780.0,104760.0,0.20844]
[1749076867432,0.36289665,104780.0,104760.0,0.20844]
[1749076867625,0.37244027,104780.0,104760.0,0.20744]
[1749076867837,0.37244027,104780.0,104760.0,0.20844]
[1749076868659,0.36289665,104780.0,104760.0,0.20844]
[1749076869926,0.37244018,104780.0,104760.0,0.20844]
[1749076871191,0.36289665,104780.0,104760.0,0.20844]
[1749076871592,0.36289665,104780.0,104760.0,0.0528]
[1749076871804,0.36289665,104780.0,104770.0,0.15564]
[1749076872927,0.00481005,104780.0,104770.0,0.20874]
[1749076873134,0.01435303,104780.0,104770.0,0.20874]
[1749076873548,0.00481005,104780.0,104770.0,0.20874]
[1749076873976,0.01435303,104780.0,104770.0,0.20874]
[1749076874177,0.01635303,104780.0,104770.0,0.45498]
[1749076874599,0.02589619,104780.0,104770.0,0.45498]
[1749076874796,0.0258961,104780.0,104770.0,0.45498]
[1749076875464,0.00681005,104780.0,104770.0,0.45498]
[1749076876590,0.01635312,104780.0,104770.0,0.45498]
[1749076877104,0.00681005,104780.0,104770.0,0.45498]
[1749076877968,0.01635312,104780.0,104770.0,0.45498]
[1749076881648,0.00681005,104780.0,104770.0,0.45498]
[1749076881855,0.01635312,104780.0,104770.0,0.45498]
[1749076882055,0.00681005,104780.0,104770.0,0.45498]
[1749076882260,0.01635312,104780.0,104770.0,0.45498]
[1749076882541,0.00681005,104780.0,104770.0,0.45498]
[1749076882774,0.01635303,104780.0,104770.0,0.45498]
[1749076882989,0.00681005,104780.0,104770.0,0.45498]
[1749076883199,0.01635312,104780.0,104770.0,0.45498]
[1749076883506,0.00681005,104780.0,104770.0,0.45498]
[1749076891380,0.00681005,104780.0,104770.0,0.5508343]
[1749076900522,0.00681005,104780.0,104770.0,0.3045943]
[1749076904121,0.00681005,104780.0,104770.0,0.5507943]
[1749076908615,0.00681005,104780.0,104770.0,0.3449143]
[1749076911201,0.00681005,104780.0,104770.0,0.3045943]
[1749076914168,0.00681005,104780.0,104770.0,0.5507943]
[1749076915194,0.00581005,104780.0,104770.0,0.5507943]
[1749076915565,0.00581005,104780.0,104770.0,0.5517943]
[1749076915982,0.00381005,104780.0,104770.0,0.5517943]
[1749076917317,0.00381005,104780.0,104770.0,0.57680086]
[1749076917894,0.00381005,104780.0,104770.0,0.37092086]
[1749076920035,0.00381005,104780.0,104770.0,0.33060086]
[1749076924284,0.00381005,104780.0,104770.0,0.57672086]
[1749076925611,0.00381005,104780.0,104770.0,0.39359255]
[1749076926812,0.00381005,104780.0,104770.0,0.54911255]
[1749076927847,0.00381005,104780.0,104770.0,0.30299255]
[1749076929168,0.00381005,104780.0,104770.0,0.32708689]
[1749076930239,0.00381005,104780.0,104770.0,0.30299255]
[1749076933558,0.00381005,104780.0,104770.0,0.34222973]
[1749076933781,0.00381005,104780.0,104770.0,0.3745222]
[1749076934211,0.00381005,104780.0,104770.0,0.6206422]
[1749076934913,0.00381005,104780.0,104770.0,0.65436212]
[1749076935121,0.00381005,104780.0,104770.0,0.62207765]
[1749076936042,0.00381005,104780.0,104770.0,0.41623765]
[1749076936253,0.00381005,104780.0,104770.0,0.44853012]
[1749076937198,0.00381005,104780.0,104770.0,0.40825012]
[1749076939103,0.00381005,104780.0,104770.0,0.37595765]
[1749076939737,0.00381005,104780.0,104770.0,0.66925765]
[1749076944037,0.00381005,104780.0,104770.0,0.75157765]
[1749076944168,0.00381005,104780.0,104770.0,0.99769765]
[1749076947100,0.00381005,104780.0,104770.0,0.91537765]
[1749076947563,0.00381005,104780.0,104770.0,1.24767012]
[1749076947793,0.00381005,104780.0,104770.0,1.04183012]
[1749076948002,0.00381005,104780.0,104770.0,1.00155012]
[1749076950810,0.00381005,104780.0,104770.0,1.00355012]
[1749076950994,0.00381005,104780.0,104770.0,1.40355012]
[1749076951637,0.00381005,104780.0,104770.0,1.40655012]
[1749076954070,0.00381005,104780.0,104770.0,1.73495012]
[1749076954679,0.00381005,104780.0,104770.0,1.65263012]
[1749076955444,0.00381005,104780.0,104770.0,1.49711012]
[1749076955597,0.00381005,104780.0,104770.0,1.65255012]
[1749076956614,0.00381005,104780.0,104770.0,1.62025765]
[1749076958244,0.00381005,104780.0,104770.0,1.41441765]
[1749076958442,0.00381005,104780.0,104770.0,1.01441765]
[1749076958652,0.00381005,104780.0,104770.0,0.97413765]
[1749076959291,0.00381005,104780.0,104770.0,0.81873765]
[1749076959487,0.00381005,104780.0,104770.0,0.97413765]
[1749076962606,0.00381005,104780.0,104770.0,1.37413765]
[1749076963444,0.00381005,104780.0,104770.0,1.21873765]
[1749076963584,0.00381005,104780.0,104770.0,1.37413765]
[1749076963998,0.00381005,104780.0,104770.0,1.70249765]
[1749076964423,0.00381005,104780.0,104770.0,1.80289765]